Cogmind - Beta 10.2 @@@ ROGUE MODE // 2021.12.04 @ 02:42:28 Player: Azken Zutik Result: Assimilated 0b10! Performance ------------- Evolutions (9) 4500 Regions Visited (33) 6600 Robots Destroyed (479) 2395 Value Destroyed (24574) 24574 Prototype IDs (80) 1600 Alien Tech Used (0) 0 Bonus (26687) 26687 TOTAL SCORE: 66356 Bonus ------- High Alert Combat Kills 5798 Follower Combat Kills 3383 Entered Garrisons 1600 Used RIF Installer 4000 Network Hubs Disabled 200 Aligned with FarCom 300 Built Enhanced Grunts 300 A7 Reached Mainframe 300 Met R17 at Cetus 500 Destroyed MAIN.C Guards 500 Met MAIN.C 5000 Hacked MAIN.C 300 Used 0b10 Conduit 2000 Win 3000 Friendly Fire -494 Cogmind --------- Core Integrity 1500/1600 Matter 292/300 Energy 1114/1135 System Corruption 11% Temperature Cool (15) Movement Treading (181) Ox1 Location 0b10 Command Parts ------- > --- POWER (2) -------- Reinforced Fission Core Reinforced Antimatter Reactor > --- PROPULSION (6) --- Armored Heavy Treads Biometal Heavy Treads Advanced Heavy Siege Treads > --- UTILITY (13) ----- Advanced Coolant Injector High-capacity Storage Unit High-capacity Storage Unit High-capacity Storage Unit High-capacity Storage Unit High-capacity Storage Unit High-capacity Storage Unit Improved Energy Well Advanced Armor Integrity Analyzer Damper Plating Advanced Force Field > --- WEAPON (4) ------- Railgun Improved KE Penetrator Advanced Remote Datajack Phasing Sabre > --- INVENTORY (52) --- Reinforced Antimatter Reactor Reinforced Antimatter Reactor Heavy Treads Advanced Coolant Injector High-capacity Matter Pod (200) High-capacity Matter Pod (200) Matter Compressor (250) Matter Compressor (250) Matter Filter Overload Amplifier Improved Phase Shifter Improved Weapon Shielding Hardened Heavy Armor Plating Hardened Heavy Armor Plating Layered Medium Armor Plating Layered Medium Armor Plating Layered Heavy Armor Plating Centrium Medium Armor Plating Heavy Reflective Plating Improved Thermal Shield Improved Thermal Shield Advanced Force Field Advanced Force Field Relay Coupler [NC] (43) Relay Coupler [NC] (41) Relay Coupler [Swarmer] (49) Relay Coupler [Grunt] (38) Relay Coupler [Behemoth] (20) Improved Dynamic Insulation System System Backup Module Advanced Recalibrator Advanced Variable Charge Gun Coil Gun Coil Gun Coil Gun Coil Gun KE Penetrator KE Penetrator Railgun Railgun Smartbomb Launcher Smartbomb Launcher Advanced Remote Datajack Advanced Remote Datajack Improved Plasma Cutter Peak State ------------ > --- POWER ------------ Quantum Reactor Quantum Reactor > --- PROPULSION ------- Armored Heavy Treads Advanced Heavy Treads Advanced Heavy Siege Treads > --- UTILITY ---------- Improved Coolant Injector High-capacity Storage Unit High-capacity Storage Unit High-capacity Storage Unit High-capacity Storage Unit High-capacity Storage Unit High-capacity Storage Unit Improved Energy Well Advanced Target Analyzer Advanced Armor Integrity Analyzer Advanced Phase Shifter Centrium Medium Armor Plating Force Field > --- WEAPON ----------- KE Penetrator Railgun Advanced Remote Datajack Phasing Sabre > --- INVENTORY -------- Particle Reactor Particle Reactor Armored Heavy Treads Advanced Cooling System Advanced Cooling System Advanced Cooling System High-capacity Matter Pod High-capacity Matter Pod Matter Compressor Matter Compressor Advanced Target Analyzer Overload Amplifier Improved Phase Shifter Improved Weapon Shielding Improved Heavy Armor Plating Medium Reflective Plating Damper Plating Improved Thermal Shield Advanced Force Field Advanced Force Field Relay Coupler [NC] Relay Coupler [NC] Relay Coupler [Swarmer] Relay Coupler [Grunt] Relay Coupler [Sentry] Relay Coupler [Behemoth] Improved Dynamic Insulation System System Backup Module Advanced Recalibrator Advanced Variable Charge Gun Coil Gun Coil Gun Coil Gun Coil Gun KE Penetrator KE Penetrator KE Penetrator Railgun Railgun Improved KE Penetrator Smartbomb Launcher Smartbomb Launcher Advanced Remote Datajack Advanced Remote Datajack Improved Plasma Cutter [Rating: 179] Favorites ----------- Power Antimatter Reactor Engine Reinforced Deuterium Engine Power Core Micro Fission Core Reactor Antimatter Reactor Propulsion Heavy Treads Treads Heavy Treads Leg Carbon-fiber Leg Wheel Armored Wheel Utility High-capacity Storage Unit Device Force Field Storage High-capacity Storage Unit Processor Advanced Armor Integrity Analyzer Hackware Relay Coupler [NC] Protection Improved Medium Armor Plating Weapon KE Penetrator Energy Gun Small Laser Energy Cannon Firepult Ballistic Gun KE Penetrator Launcher Advanced EMP Blaster Special Weapon Improved Remote Datajack Impact Weapon Great Maul Slashing Weapon Phasing Sabre Special Melee Weapon Datajack Build | -11 -10 -10 -10 -9 -8 -8 -8 -8 -7 -7 -7 -7 -6 -6 -5 -5 -5 -5 -4 -4 -4 -4 -4 -4 -4 -3 -3 -2 -2 -2 -2 -1 -1 ------- Run | Scr Mat Min Exi Min Mat Gar Mat Gar Fac Was Fac Gar Fac Gar Fac Was Fac Gar Fac Was Fac Ext Cet Arc Hub Res Gar Res Gar Res Gar Acc Com Slots Evolved 18 | . . . . . 4 . . . 2 . . . 2 . 2 . . . 2 . . . . . . 2 . 2 . . . 2 . Power 1 | . . . . . . . . . . . . . . . . . . . 1 . . . . . . . . . . . . . . Propulsion 4 | . . . . . . . . . . . . . . . 2 . . . . . . . . . . . . . . . . 2 . Utility 11 | . . . . . 2 . . . 2 . . . 2 . . . . . 1 . . . . . . 2 . 2 . . . . . Weapon 2 | . . . . . 2 . . . . . . . . . . . . . . . . . . . . . . . . . . . . Parts Attached 528 | 6 11 3 1 1 38 11 . 10 10 14 5 15 28 24 14 9 23 30 16 5 10 48 9 9 6 26 32 15 29 2 23 14 31 Power 34 | 1 1 . . . 1 . . . . 2 1 . 1 1 . 2 . 2 1 . 1 5 2 1 1 . 2 1 1 1 . . 6 Engine 6 | 1 1 . . . 1 . . . . . . . . 1 . . . 1 1 . . . . . . . . . . . . . . Core 7 | . . . . . . . . . . . . . . . . . . . . . . 4 1 . . . . . . . . . 2 Reactor 21 | . . . . . . . . . . 2 1 . 1 . . 2 . 1 . . 1 1 1 1 1 . 2 1 1 1 . . 4 Propulsion 36 | 2 2 . . . 7 . . . 1 1 . . 1 . 1 2 1 2 2 . 1 2 2 . . . 1 4 1 . . 1 2 Treads 31 | 2 2 . . . 3 . . . . 1 . . 1 . 1 2 1 2 2 . 1 2 2 . . . 1 4 1 . . 1 2 Leg 2 | . . . . . 2 . . . . . . . . . . . . . . . . . . . . . . . . . . . . Wheel 3 | . . . . . 2 . . . 1 . . . . . . . . . . . . . . . . . . . . . . . . Hover . | . . . . . . . . . . . . . . . . . . . . . . . . . . . . . . . . . . Flight . | . . . . . . . . . . . . . . . . . . . . . . . . . . . . . . . . . . Utility 248 | 1 3 . . . 9 6 . 7 4 5 2 12 8 16 3 2 12 19 4 3 5 25 2 2 2 15 18 6 21 . 21 4 11 Device 65 | . . . . . 1 1 . 1 2 . . 2 3 4 1 1 2 6 3 1 2 6 . 1 . 5 5 2 3 . 6 2 5 Storage 75 | 1 3 . . . 3 4 . 4 . 3 1 7 1 6 . . 6 8 . . . 2 1 . . . 9 . 9 . 6 . 1 Processor 4 | . . . . . . . . . . . 1 . . . . 1 . . . . . . . . . 1 . . . . 1 . . Hackware 12 | . . . . . . . . . . 2 . . . . 1 . 1 . . 1 . 2 . . . 2 . 1 . . . 1 1 Protection 92 | . . . . . 5 1 . 2 2 . . 3 4 6 1 . 3 5 1 1 3 15 1 1 2 7 4 3 9 . 8 1 4 Artifact . | . . . . . . . . . . . . . . . . . . . . . . . . . . . . . . . . . . Weapon 210 | 2 5 3 1 1 21 5 . 3 5 6 2 3 18 7 10 3 10 7 9 2 3 16 3 6 3 11 11 4 6 1 2 9 12 Energy Gun 6 | 2 1 . . . 2 . . . . . . . . . . . . . . . . . 1 . . . . . . . . . . Energy Cannon 1 | . . . . . . . . . . . . . . 1 . . . . . . . . . . . . . . . . . . . Ballistic Gun 116 | . 3 1 . 1 12 2 . . 4 5 1 1 8 2 5 1 5 5 4 . 3 10 2 6 1 7 8 1 5 . 2 4 7 Ballistic Cannon . | . . . . . . . . . . . . . . . . . . . . . . . . . . . . . . . . . . Launcher 33 | . 1 2 . . 3 1 . 2 . . . 1 6 4 2 . 1 2 . . . 3 . . 1 . 2 . 1 . . . 1 Special Weapon 24 | . . . . . 2 . . . . 1 . . 3 . 2 1 1 . 2 1 . 2 . . . 2 1 1 . . . 2 3 Impact Weapon 6 | . . . . . 2 2 . 1 1 . . . . . . . . . . . . . . . . . . . . . . . . Slashing Weapon 23 | . . . . . . . . . . . 1 1 1 . 1 1 3 . 3 1 . 1 . . 1 2 . 2 . 1 . 3 1 Piercing Weapon . | . . . . . . . . . . . . . . . . . . . . . . . . . . . . . . . . . . Special Melee Weapon 1 | . . . 1 . . . . . . . . . . . . . . . . . . . . . . . . . . . . . . Unidentified Prototypes 10 | . . . . . 2 . . . 1 . . . . . 1 . . 1 . . . . 3 2 . . . . . . . . . Parts Lost 37 | . 2 . . . 3 . . . . . . . 3 1 1 . 1 . 4 . . 5 . . 1 5 . 2 . . 3 . 6 Power 2 | . 1 . . . . . . . . . . . . . . . . . . . . . . . . . . . . . . . 1 Propulsion 6 | . . . . . 2 . . . . . . . 1 . . . . . 2 . . 1 . . . . . . . . . . . Utility 21 | . . . . . . . . . . . . . 1 1 . . . . 1 . . 3 . . 1 5 . 2 . . 3 . 4 Weapon 8 | . 1 . . . 1 . . . . . . . 1 . 1 . 1 . 1 . . 1 . . . . . . . . . . 1 Highest Loss Streak 5 | . 1 . . . 1 . . . . . . . 3 1 1 . 1 . 2 . . 5 . . 1 2 . 1 . . 3 . 4 Average Slot Usage (%) 89 | . 98 100 100 100 98 92 100 91 91 91 91 84 92 88 87 88 87 91 92 78 88 86 89 89 88 86 88 90 82 85 80 88 81 Engine 3 | . 14 14 14 14 9 9 9 9 7 . . . . 4 5 1 . 3 5 5 5 1 . . . . . . . . . . . Reactor 4 | . . . . . . . . . . 6 6 7 5 1 . 3 5 1 5 5 5 . 5 5 5 9 9 8 8 7 8 8 5 Treads 10 | . 27 28 28 28 8 . . . . 6 7 7 6 6 11 11 11 16 13 10 10 10 10 10 10 9 8 8 8 8 8 12 12 Wheel 1 | . . . . . 7 18 18 18 7 . . . . . . . . . . . . . . . . . . . . . . . . Device 6 | . . . . . 2 6 . 6 6 . . 10 5 10 5 . . 11 5 . 13 5 10 10 7 12 15 17 14 4 15 9 6 Storage 25 | . 27 28 28 28 27 10 36 9 30 44 46 10 40 15 35 35 35 11 31 26 26 26 28 26 26 23 13 26 13 34 13 28 28 Processor 1 | . . . . . . . . . . . . . . . . 4 5 5 5 . . . . . . 2 4 4 4 4 4 8 5 Protection 8 | . . . . . 6 12 . 13 7 . . 16 6 22 5 5 4 15 5 4 6 11 7 10 12 8 16 7 14 8 11 4 4 Ballistic Gun 18 | . 16 15 14 19 28 23 27 27 28 17 29 21 19 18 21 7 15 18 16 13 13 17 18 21 19 17 18 16 15 15 16 12 10 Launcher 1 | . 4 12 . . 4 4 . 6 1 . . 6 3 7 . . . 3 . . . . . . . . . . . . . . . Special Weapon 1 | . . . . . . . . . . 5 . . . . . 9 3 . 1 5 3 2 . . . . . . . . . 1 2 Naked Turns . | . . . . . . . . . . . . . . . . . . . . . . . . . . . . . . . . . . Heaviest Build 324 | 9 40 39 39 37 79 88 88 90 95 126 123 127 166 166 159 151 236 260 256 253 253 263 224 234 237 254 256 245 276 281 269 276 324 Greatest Support 225 | 40 40 40 40 40 40 24 24 24 28 70 70 70 70 70 140 140 140 140 140 140 140 140 160 160 160 160 160 155 155 140 140 210 225 Greatest Overweight (x) 6 | . . . . . 6 3 3 3 3 3 1 1 2 2 1 1 1 1 1 3 1 1 1 1 1 1 1 3 1 2 1 1 1 Average Overweight (x) . | . . . . . 2 1 3 2 3 1 1 . 1 1 1 1 1 . 1 1 1 1 1 1 1 1 . 1 . 1 . 1 1 Largest Inventory Capacity 60 | 6 16 16 16 16 22 28 28 28 28 40 40 40 42 48 42 42 52 60 52 52 44 44 44 44 44 44 52 44 52 52 52 52 52 Average Capacity 32 | 5 13 16 16 16 22 10 28 9 28 38 39 12 40 18 42 42 51 19 52 44 44 44 44 44 44 44 20 44 19 52 21 52 52 Most Carried 52 | 6 16 16 16 16 22 28 28 28 28 40 40 40 42 42 42 42 51 52 52 49 44 44 44 44 44 44 48 44 52 52 52 52 52 Average Carried 30 | 3 11 15 15 16 21 9 28 8 27 38 39 11 40 14 41 41 46 18 50 43 43 43 43 43 43 41 16 42 17 52 17 51 50 Final Capacity 52 | 6 16 16 16 16 22 28 28 28 28 40 40 40 42 42 42 42 52 52 52 44 44 44 44 44 44 44 44 44 52 52 52 52 52 Final Carried 52 | 6 16 16 16 16 22 28 28 28 28 40 39 40 38 42 42 42 51 52 49 43 44 44 44 44 43 40 44 43 52 52 52 51 52 Class Distribution -------------------- 22% | Hauler-Mutant 17% | Scavenger-Tank 15% | Mutant 11% | Hauler-Skirmisher 6% | Botlord-Mutant 6% | Scavenger-Mutant 4% | Commander-Tank 4% | Hauler-Tank 4% | Bothacker-Mutant Dominant Class ---------------- Mutant | -10/Materials Mutant | -10/Mines Mutant | -10/Exiles Mutant | -9/Mines Hauler-Mutant | -8/Materials Mutant | -8/Garrison Hauler-Mutant | -8/Materials Mutant | -8/Garrison Bothacker-Tank | -7/Factory Hauler-Mutant | -7/Waste Hauler-Skirmisher | -7/Factory Mutant | -7/Garrison Hauler-Mutant | -6/Factory Scavenger-Mutant | -6/Garrison Hauler-Tank | -5/Factory Hauler-Mutant | -5/Waste Hauler-Mutant | -5/Factory Scavenger-Tank | -5/Garrison Hauler-Mutant | -4/Factory Bothacker-Mutant | -4/Waste Bothacker-Mutant | -4/Factory Scavenger-Tank | -4/Extension Commander-Tank | -4/Cetus Commander-Tank | -4/Archives Scavenger-Tank | -4/Hub_04(d) Scavenger-Tank | -3/Research Scavenger-Tank | -3/Garrison Scavenger-Tank | -2/Research Scavenger-Tank | -2/Garrison Botlord-Mutant | -2/Research Scavenger-Tank | -2/Garrison Botlord-Mutant | -1/Access Botlord-Mutant | -1/Command Resources | -11 -10 -10 -10 -9 -8 -8 -8 -8 -7 -7 -7 -7 -6 -6 -5 -5 -5 -5 -4 -4 -4 -4 -4 -4 -4 -3 -3 -2 -2 -2 -2 -1 -1 ----------- Run | Scr Mat Min Exi Min Mat Gar Mat Gar Fac Was Fac Gar Fac Gar Fac Was Fac Gar Fac Was Fac Ext Cet Arc Hub Res Gar Res Gar Res Gar Acc Com Matter Collected 22468 | 327 365 44 30 12 769 584 . 281 228 380 290 960 907 782 315 337 764 1032 587 203 154 2234 182 90 325 2531 1367 860 1435 . 1357 1040 1696 Remotely . | . . . . . . . . . . . . . . . . . . . . . . . . . . . . . . . . . . Salvage Created 28943 | 258 354 18 . . 1735 1149 . 215 228 300 444 1278 2279 703 561 2043 974 833 1049 . 154 2498 . . 1104 3076 912 1052 1361 . 1401 1235 1729 Parts 1356 | 16 27 . . . 88 37 . 15 21 1 32 44 106 36 27 58 48 57 41 . 11 138 . . 51 129 46 56 47 . 62 72 90 Haulers Intercepted 5 | . . . . . 3 . . . . . . . . . . . . . . . . . . . 2 . . . . . . . . Recyclers Shooed 17 | . . 1 . . 2 . . . . . . . 4 . 1 . 1 . 1 . . 2 . . . 3 . . . . . . 2 Parts Field Recycled . | . . . . . . . . . . . . . . . . . . . . . . . . . . . . . . . . . . Retrieved Matter . | . . . . . . . . . . . . . . . . . . . . . . . . . . . . . . . . . . Parts Self-Destructed . | . . . . . . . . . . . . . . . . . . . . . . . . . . . . . . . . . . Prevented . | . . . . . . . . . . . . . . . . . . . . . . . . . . . . . . . . . . Kills | -11 -10 -10 -10 -9 -8 -8 -8 -8 -7 -7 -7 -7 -6 -6 -5 -5 -5 -5 -4 -4 -4 -4 -4 -4 -4 -3 -3 -2 -2 -2 -2 -1 -1 ------- Run | Scr Mat Min Exi Min Mat Gar Mat Gar Fac Was Fac Gar Fac Gar Fac Was Fac Gar Fac Was Fac Ext Cet Arc Hub Res Gar Res Gar Res Gar Acc Com Combat Hostiles Destroyed 391 | . 7 2 . . 28 19 . 6 4 1 4 21 36 16 11 6 26 24 12 . 2 25 . . 8 37 19 14 16 . 21 17 9 Guns 251 | . 3 1 . . 11 3 . 2 4 1 4 3 18 3 10 . 13 7 11 . 2 19 . . 8 37 14 14 16 . 21 17 9 Cannons 6 | . . . . . . . . . . . . . . . . 6 . . . . . . . . . . . . . . . . . AOE 107 | . 4 1 . . 16 11 . 3 . . . 13 11 10 1 . 13 15 1 . . 3 . . . . 5 . . . . . . Classes Destroyed 20 | 3 6 2 . . 3 1 . . 1 1 . 1 1 1 . . . . . . . . . . . . . . . . . . . Worker 30 | 4 . . . . . . . . . . 1 . 4 . . . . . 3 . 1 6 . . 3 4 . 1 . . . 3 . Builder 17 | . 1 . . . 3 . . . . . . . 3 . . . 1 . . . . 6 . . 3 . . . . . . . . Tunneler 7 | 3 . . . . . . . . . . 1 . . . . . . . . . . 2 . . . 1 . . . . . . . Hauler 5 | . . . . . 3 . . . . . . . . . . . . . . . . . . . 2 . . . . . . . . Recycler 14 | 1 1 . . . 3 . . . . . . . . . . . . . 2 . . 3 . . 1 3 . . . . . . . Mechanic 2 | . 1 . . . . . . . . . . . . . . . . . . . . . . . . 1 . . . . . . . Operator 5 | . 1 . . . 2 . . . . . . . . . . . 1 . . . . . . . . 1 . . . . . . . Watcher 15 | . 1 . . . 2 . . . . . 3 . 2 . . . . . . . . 3 . . 1 . . . . . . 3 . Swarmer 92 | . 3 . . . 7 3 . 3 . . . 7 4 10 5 . . 20 . . . 2 . . . 7 8 . . . 7 6 . Grunt 123 | . 4 . . . 11 12 . . . . 2 5 13 2 3 . 14 1 8 . . 6 . . 5 12 7 5 6 . 6 1 . Brawler 13 | . . . . . . 1 . . . . . 2 3 1 . . . . . . . . . . . 1 . 1 2 . 2 . . Duelist 16 | . . . . . . . . . . . . 3 7 . . . . . . . . . . . 1 3 . . 2 . . . . Protector 5 | . . . . . . . . . . . . . 4 . . . . . . . . . . . . 1 . . . . . . . Sentry 44 | . . . . . 8 3 . 2 2 . . 2 2 2 2 . . 1 1 . 2 9 . . 2 3 . . 1 . 1 1 . Demolisher 1 | . . 1 . . . . . . . . . . . . . . . . . . . . . . . . . . . . . . . Hunter 24 | . . . . . 2 . . 1 . . . . . . 1 . . . 2 . . 2 . . . 4 4 . 2 . . 4 2 Programmer 45 | . . . . . . . . . 2 . 2 2 3 . . . 2 1 1 . . 4 . . . 6 . 7 2 . 4 5 4 Behemoth 6 | . . . . . . . . . . . . . . 1 . . . 1 . . . 2 . . . . . . 1 . 1 . . Compactor 7 | . . . . . . . . . . 1 . . . . . 6 . . . . . . . . . . . . . . . . . M Guard 1 | . . . . . . . . . . . . . . . . . . . . . . . . . . . . . . . . . 1 Combat Programmer 2 | . . . . . . . . . . . . . . . . . . . . . . . . . . . . . . . . . 2 Assembled 11 | . . 1 . . . . . . . . . . . . . . 10 . . . . . . . . . . . . . . . . Surgeon 1 | . . . . . . . . . . . . . . . . . 1 . . . . . . . . . . . . . . . . Thug 1 | . . . . . . . . . . . . . . . . . . . . . . . . . . . . 1 . . . . . Martyr 2 | . . . . . . . . . . . 2 . . . . . . . . . . . . . . . . . . . . . . Guerrilla 1 | . . . . . . . . . . . . . . . . . . . . . . 1 . . . . . . . . . . . Best Kill Streak 18 | 3 3 2 . . 9 6 . 3 1 1 2 5 18 7 5 2 10 8 8 . 1 14 . . 8 9 11 5 4 . 11 11 2 Combat Bots Only 11 | . 3 2 . . 4 6 . 3 1 1 1 5 9 7 5 2 10 8 7 . 1 6 . . 6 6 11 5 4 . 11 8 2 Max Kills in Single Turn 5 | 1 3 1 . . 2 2 . 3 1 1 2 3 5 5 2 1 5 2 2 . 1 2 . . 5 3 4 2 2 . 1 2 1 Gunslinging 1 | . . . . . . . . . . . . . 1 . . . 1 . . . . 1 . . 1 1 . 1 1 . . 1 . Exploded 5 | . 3 1 . . 2 2 . 3 . . . 3 3 5 1 . 5 2 1 . . 1 . . . . 4 . . . . . . Melee . | . . . . . . . . . . . . . . . . . . . . . . . . . . . . . . . . . . Uniques/NPCs Destroyed . | . . . . . . . . . . . . . . . . . . . . . . . . . . . . . . . . . . Combat | -11 -10 -10 -10 -9 -8 -8 -8 -8 -7 -7 -7 -7 -6 -6 -5 -5 -5 -5 -4 -4 -4 -4 -4 -4 -4 -3 -3 -2 -2 -2 -2 -1 -1 -------- Run | Scr Mat Min Exi Min Mat Gar Mat Gar Fac Was Fac Gar Fac Gar Fac Was Fac Gar Fac Was Fac Ext Cet Arc Hub Res Gar Res Gar Res Gar Acc Com Damage Taken 28301 | . 488 53 . . 1311 381 . 70 189 42 288 332 2027 402 684 . 1366 1171 1416 14 159 5543 103 . 592 2995 590 797 857 46 2361 1191 2833 Core 1183 | . 97 53 . . 91 11 . . 16 . 14 43 23 24 37 . 88 38 123 . . 115 . . 27 97 . 71 70 25 20 20 80 Absorbed by Shields 6315 | . . . . . . 119 . 26 74 . . 131 332 161 238 . . 222 . . 87 . 98 . . 1646 444 489 745 . 730 103 670 Reduced by Siege Mode 1884 | . . . . . . . . . . . 4 19 110 5 83 . 77 74 66 . . 281 . . 14 199 51 75 54 . 222 211 339 Core Remaining (%) 83 | 100 . . . 40 . . . 81 . . . 89 . 94 . . . 83 . . . . . . 76 . 92 . . . 87 . 93 Volleys Fired 1172 | 12 36 3 . 1 96 47 . 9 9 46 23 52 56 26 25 58 40 51 32 15 16 133 2 . 23 100 39 33 43 . 42 42 62 Largest 4 | 2 2 2 . 2 4 3 . 3 4 1 4 3 4 3 4 1 4 3 4 3 4 4 3 . 4 4 4 4 4 . 4 4 4 Hottest 240 | 80 60 40 . 40 129 84 . 84 112 30 100 78 112 84 112 40 122 96 132 99 132 132 240 . 140 140 136 136 134 . 132 136 138 Shots Fired 2893 | 24 62 5 . 2 257 66 . 17 33 46 91 66 148 49 88 58 111 76 100 25 28 239 4 . 79 358 129 108 156 . 156 147 165 Gun 2459 | 24 61 4 . 2 220 29 . 12 33 40 91 23 124 18 85 . 99 42 96 15 28 153 4 . 77 351 125 103 155 . 156 141 148 Cannon . | . . . . . . . . . . . . . . . . . . . . . . . . . . . . . . . . . . Launcher 261 | . 1 1 . . 32 37 . 5 . . . 43 19 31 2 . 7 34 . . . 41 . . 2 . 4 . 1 . . . 1 Special 173 | . . . . . 5 . . . . 6 . . 5 . 1 58 5 . 4 10 . 45 . . . 7 . 5 . . . 6 16 Kinetic 2412 | . 44 4 . 2 215 29 . 12 33 40 91 23 124 18 85 . 99 42 96 15 28 153 3 . 77 351 125 103 155 . 156 141 148 Thermal 99 | 24 . . . . 10 . . . . . . . . . . 52 . . . . . . 1 . . . . . . . . . 12 Explosive 22 | . 1 1 . . . . . . . . . . . . . . 7 . . . . 5 . . 2 . 4 . 1 . . . 1 Electromagnetic 256 | . 17 . . . 32 37 . 5 . . . 43 19 31 2 . . 34 . . . 36 . . . . . . . . . . . Robot Hit Streak 77 | 7 9 2 . . 22 8 . 17 8 17 11 11 23 12 20 39 27 13 22 18 16 29 1 . 17 35 21 57 47 . 44 57 77 Robot Miss Streak 6 | 3 3 3 . 2 6 5 . 3 5 1 3 2 3 1 1 2 2 3 2 1 . 5 1 . 2 5 2 2 1 . 3 2 1 Penetration Max 2 | . . . . . 1 . . . . . . . 1 . 1 . 1 . 1 . . 1 . . 2 2 1 2 1 . 1 1 . Secondary Targets 63 | . 1 . . . 3 . . . . . . . 2 1 3 . 3 2 5 . . 5 . . 1 9 2 5 4 . 6 8 3 Max Gunslinging Chain 2 | . 1 . . . 1 . . . . . . . 1 1 1 . 1 1 1 . . 1 . . 1 2 1 2 1 . 1 1 1 Shots Hit Robots 2195 | 14 43 2 6 . 151 32 . 12 28 80 53 37 103 24 70 57 91 41 79 25 16 153 1 . 54 277 101 98 130 . 129 114 174 Core Hits 1140 | 9 24 4 . 1 73 33 . 14 21 5 17 30 119 24 26 16 53 31 42 . 8 106 1 . 37 115 47 42 57 . 62 49 74 Critical Hits 152 | . . . . . 1 . . . . . 1 . 5 . 2 13 5 1 8 1 . 21 . . 4 15 7 9 7 . 12 18 22 Critical Kills 46 | . . . . . . . . . . . . . 3 . 1 4 4 . 3 . . 8 . . 1 6 1 1 3 . 3 6 2 Critical Parts Destroyed 84 | . . . . . 1 . . . . . 1 . 1 . 1 4 1 1 5 . . 11 . . 2 9 6 8 3 . 6 12 12 Melee Attacks 200 | . . . 6 . 2 8 5 6 1 39 4 1 6 . 4 4 8 . 12 2 15 1 . . 2 9 . 3 . 8 . 24 30 Impact 61 | . . . . . 2 8 5 6 1 39 . . . . . . . . . . . . . . . . . . . . . . . Slashing 133 | . . . . . . . . . . . 4 1 6 . 4 4 8 . 12 2 15 1 . . 2 9 . 3 . 8 . 24 30 Piercing . | . . . . . . . . . . . . . . . . . . . . . . . . . . . . . . . . . . Sneak Attacks 51 | . . . 6 . . . . . . 39 . . . . . 4 . . . 2 . . . . . . . . . . . . . Combat Hostiles 45 | . . . . . . . . . . 39 . . . . . 4 . . . 2 . . . . . . . . . . . . . Follow-up Attacks . | . . . . . . . . . . . . . . . . . . . . . . . . . . . . . . . . . . Damage Inflicted 68728 | 178 700 99 . 20 2659 1842 . 396 374 4194 814 2014 5281 1209 1563 1068 3335 1877 2617 454 346 6385 25 . 2412 6880 3057 2879 3258 . 3541 2841 6410 Guns 43139 | 178 426 14 . 20 1150 221 . 213 374 728 814 292 2168 130 1512 . 1953 501 1838 336 346 3896 25 . 1730 6864 2154 2879 3258 . 3541 2841 2737 Cannons . | . . . . . . . . . . . . . . . . . . . . . . . . . . . . . . . . . . Explosions 17187 | . 274 85 . . 1509 1484 . 183 . . . 1722 3113 1079 51 . 1382 1376 779 . . 2489 . . 682 . 903 . . . . . 76 Melee 7351 | . . . . . . 137 . . . 3466 . . . . . 234 . . . 118 . . . . . . . . . . . . 3396 Ramming 16 | . . . . . . . . . . . . . . . . . . . . . . . . . . 16 . . . . . . . Kinetic 42728 | . 246 14 . 20 1097 221 . 213 374 728 814 292 2168 130 1512 . 1953 501 1838 336 346 3896 25 . 1730 6864 2154 2879 3258 . 3541 2841 2737 Thermal 3406 | 178 151 . . . 193 66 . 47 . . . 27 480 . . 834 . 252 779 . . 198 . . . . . . . . . . 201 Explosive 3274 | . 123 85 . . . . . . . . . . . . . . 1382 . . . . 705 . . . . 903 . . . . . 76 Electromagnetic 11953 | . 180 . . . 1369 1418 . 136 . . . 1695 2633 1079 51 . . 1124 . . . 1586 . . 682 . . . . . . . . Impact 3603 | . . . . . . 137 . . . 3466 . . . . . . . . . . . . . . . . . . . . . . . Slashing 3748 | . . . . . . . . . . . . . . . . 234 . . . 118 . . . . . . . . . . . . 3396 Piercing . | . . . . . . . . . . . . . . . . . . . . . . . . . . . . . . . . . . Highest Corruption 11 | . . . . . . 2 2 2 . . 3 3 10 10 . . 9 11 1 1 2 3 . . . 11 11 4 4 . 2 7 11 Average Corruption 4 | . . . . . . 1 2 2 . . 2 3 2 10 . . 3 10 1 1 1 2 . . . 8 11 3 1 . 1 4 9 Corruption Purged 8 | . . . . . . . . . . . . . . . . . . . . . . 3 . . . . . . 5 . . . . Effects 604 | . . . . . . 9 . 7 . . 27 39 16 62 . . 13 115 2 3 3 59 . . . 65 65 5 16 . 13 34 51 Message Errors 114 | . . . . . . 4 . 2 . . 5 8 3 7 . . 4 17 1 1 1 12 . . . 9 14 2 3 . 7 6 8 Matter Fused 118 | . . . . . . . . . . . 11 8 3 16 . . 4 25 . . . 10 . . . 12 9 . 4 . . 6 10 Heat Flow Errors 70 | . . . . . . . . 1 . . 2 6 . 8 . . 2 17 . . 1 5 . . . 2 10 1 3 . 1 6 5 Energy Discharges 78 | . . . . . . 3 . 1 . . 4 10 4 5 . . . 15 . . . 10 . . . 5 6 1 5 . 2 2 5 Parts Rejected 1 | . . . . . . . . . . . . . . . . . . . . . . . . . . 1 . . . . . . . Data Loss (minor) 63 | . . . . . . 1 . 3 . . 1 5 . 7 . . 3 14 . 1 1 12 . . . 4 3 . 1 . 1 4 2 Data Loss (major) 7 | . . . . . . . . . . . . . 1 . . . . 4 . . . . . . . 1 1 . . . . . . Misfires 14 | . . . . . . . . . . . . . . 5 . . . 2 . . . . . . . 1 2 . . . . 1 3 Alerts 2 | . . . . . . . . . . . . . . 2 . . . . . . . . . . . . . . . . . . . Misdirections 26 | . . . . . . . . . . . . . . 5 . . . 14 . . . . . . . . 6 . . . . . 1 Targeting Errors 99 | . . . . . . 1 . . . . 3 2 4 6 . . . 6 . 1 . 9 . . . 28 12 1 . . 2 8 16 Weapon Failures 12 | . . . . . . . . . . . 1 . 1 1 . . . 1 1 . . 1 . . . 2 2 . . . . 1 1 Overload Shots 1 | . . . . . . . . . . . . . . . . . . . . . . . 1 . . . . . . . . . . Overflow Damage 1097 | . 1 . . . 62 64 . 19 . 219 . . 20 16 14 . 57 8 132 . . 20 . . . 1 108 . . . . . 356 Projectiles . | . . . . . . . . . . . . . . . . . . . . . . . . . . . . . . . . . . Explosions 505 | . 1 . . . 62 48 . 19 . . . . 20 16 14 . 57 8 132 . . 20 . . . . 108 . . . . . . Melee 592 | . . . . . . 16 . . . 219 . . . . . . . . . . . . . . . 1 . . . . . . 356 Knockbacks . | . . . . . . . . . . . . . . . . . . . . . . . . . . . . . . . . . . Impact . | . . . . . . . . . . . . . . . . . . . . . . . . . . . . . . . . . . Kinetic . | . . . . . . . . . . . . . . . . . . . . . . . . . . . . . . . . . . Secondary . | . . . . . . . . . . . . . . . . . . . . . . . . . . . . . . . . . . Self-Inflicted Damage 1204 | . 124 . . . 121 168 . . . . . 24 334 44 61 . 58 146 79 . . 45 . . . . . . . . . . . Shots 49 | . 3 . . . 5 8 . . . . . 1 14 2 3 . 1 6 1 . . 5 . . . . . . . . . . . Rammed 1 | . . . . . . . . . . . . . . . . . . . . . . . . . . 1 . . . . . . . Targets Rammed 1 | . . . . . . . . . . . . . . . . . . . . . . . . . . 1 . . . . . . . Kicked . | . . . . . . . . . . . . . . . . . . . . . . . . . . . . . . . . . . Crushed . | . . . . . . . . . . . . . . . . . . . . . . . . . . . . . . . . . . Highest Temperature 523 | 54 66 . . . 373 398 . 246 85 5 231 195 284 388 266 15 266 257 412 351 143 523 . . 229 284 254 155 224 . 237 191 519 Average Temperature 93 | 19 31 . . . 139 84 . 61 39 4 42 75 74 98 113 15 115 96 158 113 33 169 . . 91 102 63 96 70 . 102 73 63 Received Heat Transfer 3343 | . 198 . . . 378 111 . 12 40 18 . 54 225 46 92 . 420 114 198 . 8 573 4 . 78 195 55 24 77 . 211 26 186 Effects 25 | . . . . . 1 2 . . . . . . . 1 . . 3 . . 3 . 7 . . . . . . . . . . 8 Shutdowns 9 | . . . . . . 1 . . . . . . . 1 . . . . . 1 . 3 . . . . . . . . . . 3 Energy Bleed 2 | . . . . . 1 . . . . . . . . . . . . . . . . . . . . . . . . . . . 1 Interference 10 | . . . . . . . . . . . . . . . . . 3 . . 1 . 3 . . . . . . . . . . 3 Matter Decay 2 | . . . . . . 1 . . . . . . . . . . . . . . . 1 . . . . . . . . . . . Short Circuit 2 | . . . . . . . . . . . . . . . . . . . . 1 . . . . . . . . . . . . 1 Siege Activations 102 | . . . . . . . . . . . 2 9 10 4 3 . 4 5 6 . 2 13 . . 1 11 5 5 8 . 6 5 3 Total Turns 2465 | . . . . . . . . . . . 41 144 167 87 75 . 96 107 104 . 10 247 . . 55 280 121 103 330 . 174 126 198 Longest Duration 86 | . . . . . . . . . . . 33 34 45 38 45 . 41 46 37 . 6 73 . . 55 65 38 29 70 . 86 52 86 Robots Corrupted 33 | . . . . . 2 7 . 1 . . . 7 7 3 . . . 2 . . . 3 . . 1 . . . . . . . . Combat Hostiles 27 | . . . . . 1 5 . 1 . . . 5 7 3 . . . 2 . . . 3 . . . . . . . . . . . Parts Fried 83 | . . . . . 13 13 . 1 . . 1 11 22 6 . . . 9 . . . 6 . . 1 . . . . . . . . Impact Corruptions 9 | . . . . . . 2 . . . 6 . . . . . . . . . . . . . . . 1 . . . . . . . Robots Melted . | . . . . . . . . . . . . . . . . . . . . . . . . . . . . . . . . . . Combat Hostiles . | . . . . . . . . . . . . . . . . . . . . . . . . . . . . . . . . . . Parts Melted 2 | . . . . . . . . . . . . . . . . . . . . . . . . . . . . 2 . . . . . Heat Transferred 4756 | 400 100 . . . 311 150 . 100 . . . 50 500 . . 1887 . 300 550 . . 300 . . . . . . . . . . 108 Parts Sabotaged . | . . . . . . . . . . . . . . . . . . . . . . . . . . . . . . . . . . Parts Stolen . | . . . . . . . . . . . . . . . . . . . . . . . . . . . . . . . . . . Parts Stripped . | . . . . . . . . . . . . . . . . . . . . . . . . . . . . . . . . . . Power Chain Reactions 43 | . 2 . . . 5 4 . 2 . . . 3 11 2 . . . 8 . . . 6 . . . . . . . . . . . Missiles Intercepted . | . . . . . . . . . . . . . . . . . . . . . . . . . . . . . . . . . . Alert | -11 -10 -10 -10 -9 -8 -8 -8 -8 -7 -7 -7 -7 -6 -6 -5 -5 -5 -5 -4 -4 -4 -4 -4 -4 -4 -3 -3 -2 -2 -2 -2 -1 -1 ------- Run | Scr Mat Min Exi Min Mat Gar Mat Gar Fac Was Fac Gar Fac Gar Fac Was Fac Gar Fac Was Fac Ext Cet Arc Hub Res Gar Res Gar Res Gar Acc Com Peak Influence 1611 | 40 91 35 . 58 559 1084 530 548 402 10 186 733 1611 1559 1031 308 566 1081 1036 392 305 383 641 396 1074 1014 1044 640 1042 610 901 782 270 Initial 1127 | . 26 3 . . . 344 528 344 287 10 . 98 384 1127 818 308 . 363 567 362 274 93 76 256 . 563 522 587 467 585 378 540 157 Average 461 | 20 21 3 . 17 219 842 528 476 200 2 74 462 1024 1480 929 80 261 904 795 383 237 94 378 184 288 649 890 559 773 564 790 486 117 Maximum Alert Level 5 | . . . . . 2 3 2 2 2 . . 3 5 4 3 1 2 3 3 1 1 1 2 1 3 3 3 2 3 2 3 3 1 Low Security (%) 38 | 100 100 100 . 100 54 . . . 37 100 100 18 . . . 78 33 . . . 38 97 4 70 47 . . . . . . . 78 Level 1 12 | . . . . . 14 10 . 17 60 . . 16 5 . . 21 42 6 . 100 61 2 47 29 5 . . 3 . . 1 34 21 Level 2 22 | . . . . . 30 19 100 82 2 . . 60 27 . . . 24 12 38 . . . 47 . 45 62 31 96 41 100 21 53 . Level 3 20 | . . . . . . 69 . . . . . 3 15 . 100 . . 81 61 . . . . . . 37 68 . 58 . 76 12 . Level 4 5 | . . . . . . . . . . . . . 50 100 . . . . . . . . . . . . . . . . . . . Level 5 . | . . . . . . . . . . . . . 2 . . . . . . . . . . . . . . . . . . . . High Security . | . . . . . . . . . . . . . . . . . . . . . . . . . . . . . . . . . . Max Security . | . . . . . . . . . . . . . . . . . . . . . . . . . . . . . . . . . . Squads Dispatched 63 | . 1 . . . 5 . . . 3 . 4 . 12 . 1 . 6 . 6 . 1 3 . . 5 7 . 5 . 1 . 2 1 Investigation 8 | . . . . . 1 . . . . . 1 . . . . . 3 . . . 1 1 . . . . . 1 . . . . . Extermination 15 | . . . . . . . . . 2 . 2 . 3 . . . 1 . . . . . . . . 2 . 2 . . . 2 1 Reinforcement 18 | . 1 . . . 3 . . . 1 . 1 . 3 . . . 2 . 1 . . 2 . . 4 . . . . . . . . Assault 15 | . . . . . . . . . . . . . 5 . 1 . . . 2 . . . . . 1 3 . 2 . 1 . . . Garrison 7 | . . . . . 1 . . . . . . . 1 . . . . . 3 . . . . . . 2 . . . . . . . Intercept . | . . . . . . . . . . . . . . . . . . . . . . . . . . . . . . . . . . Construction Impeded 8 | . . . . . 1 . . . . . 1 . 2 . . . . . . . . 2 . . 2 . . . . . . . . Haulers Reinforced 2 | . . . . . . . . . . . . . . . . . 2 . . . . . . . . . . . . . . . . Stealth | -11 -10 -10 -10 -9 -8 -8 -8 -8 -7 -7 -7 -7 -6 -6 -5 -5 -5 -5 -4 -4 -4 -4 -4 -4 -4 -3 -3 -2 -2 -2 -2 -1 -1 --------- Run | Scr Mat Min Exi Min Mat Gar Mat Gar Fac Was Fac Gar Fac Gar Fac Was Fac Gar Fac Was Fac Ext Cet Arc Hub Res Gar Res Gar Res Gar Acc Com Distress Signals 17 | . 2 . . . 2 . . . . . 1 . . . 1 . 3 . . . . 3 2 . 2 . . . . . . 1 . Communications Jammed . | . . . . . . . . . . . . . . . . . . . . . . . . . . . . . . . . . . Distress Signals . | . . . . . . . . . . . . . . . . . . . . . . . . . . . . . . . . . . Times Spotted 533 | . 15 3 . 2 39 21 . 3 4 6 11 16 53 11 10 4 44 24 15 6 2 37 17 3 24 49 14 19 18 5 21 25 12 Peak Tracking Total 9 | . 3 2 . 2 7 6 . 2 2 3 2 4 7 8 5 2 8 9 5 2 2 8 5 1 8 7 6 6 5 4 9 7 4 Tactical Retreats 43 | . . 1 . . 2 4 . . . . 1 2 5 4 1 . 4 1 1 . . 2 . . 2 4 3 . 2 . 3 1 . Traps | -11 -10 -10 -10 -9 -8 -8 -8 -8 -7 -7 -7 -7 -6 -6 -5 -5 -5 -5 -4 -4 -4 -4 -4 -4 -4 -3 -3 -2 -2 -2 -2 -1 -1 ------- Run | Scr Mat Min Exi Min Mat Gar Mat Gar Fac Was Fac Gar Fac Gar Fac Was Fac Gar Fac Was Fac Ext Cet Arc Hub Res Gar Res Gar Res Gar Acc Com Traps Triggered 57 | . . . . . 1 9 . 5 1 . 3 5 4 8 1 . 5 1 1 . . 3 . . . . 2 3 4 . . 1 . Indirectly 13 | . . . . . 1 6 . . . . . . 1 5 . . . . . . . . . . . . . . . . . . . Trap Hack Attempts . | . . . . . . . . . . . . . . . . . . . . . . . . . . . . . . . . . . Triggered . | . . . . . . . . . . . . . . . . . . . . . . . . . . . . . . . . . . Disarmed . | . . . . . . . . . . . . . . . . . . . . . . . . . . . . . . . . . . Reprogrammed . | . . . . . . . . . . . . . . . . . . . . . . . . . . . . . . . . . . Reused . | . . . . . . . . . . . . . . . . . . . . . . . . . . . . . . . . . . Traps Extracted . | . . . . . . . . . . . . . . . . . . . . . . . . . . . . . . . . . . Installed . | . . . . . . . . . . . . . . . . . . . . . . . . . . . . . . . . . . Triggered 1 | . . . . . . . . . . . . . 1 . . . . . . . . . . . . . . . . . . . . Machines | -11 -10 -10 -10 -9 -8 -8 -8 -8 -7 -7 -7 -7 -6 -6 -5 -5 -5 -5 -4 -4 -4 -4 -4 -4 -4 -3 -3 -2 -2 -2 -2 -1 -1 ---------- Run | Scr Mat Min Exi Min Mat Gar Mat Gar Fac Was Fac Gar Fac Gar Fac Was Fac Gar Fac Was Fac Ext Cet Arc Hub Res Gar Res Gar Res Gar Acc Com Machines Disabled 81 | . 1 . . . 2 3 . 2 . . 5 3 24 . 6 . 1 2 11 . . 4 1 2 7 1 . . 4 2 . . . Max in Single Turn 14 | . 1 . . . 1 1 . 1 . . 4 1 14 . 2 . . 1 8 . . 2 1 . 6 1 . . 1 . . . . Garrison Access 4 | . . . . . . . . . . . 1 . . . . . . . . . . . . . . 1 . . . . . 2 . Garrison Relay 9 | . . . . . . 3 . . . . . 2 . . . . . 2 . . . . . . . . . . 2 . . . . Network Hub 1 | . . . . . . . . . . . . . . . . . . . . . . . . . 1 . . . . . . . . Machines Sabotaged . | . . . . . . . . . . . . . . . . . . . . . . . . . . . . . . . . . . Garrisons Compromised 1 | . . . . . . . . . . . . . . . . . 1 . . . . . . . . . . . . . . . . Overloaded Fab Kills . | . . . . . . . . . . . . . . . . . . . . . . . . . . . . . . . . . . Fab Network Shutdowns 1 | . . . . . . . . . . . . . 1 . . . . . . . . . . . . . . . . . . . . Hacking | -11 -10 -10 -10 -9 -8 -8 -8 -8 -7 -7 -7 -7 -6 -6 -5 -5 -5 -5 -4 -4 -4 -4 -4 -4 -4 -3 -3 -2 -2 -2 -2 -1 -1 --------- Run | Scr Mat Min Exi Min Mat Gar Mat Gar Fac Was Fac Gar Fac Gar Fac Was Fac Gar Fac Was Fac Ext Cet Arc Hub Res Gar Res Gar Res Gar Acc Com Machines Accessed 108 | . 8 . 2 . 9 . 1 . 6 . 12 . 11 . 2 . 13 . 2 . 6 13 3 1 3 3 . 2 . 2 . 7 2 Terminals 72 | . 7 . . . 7 . . . 2 . 7 . 4 . 2 . 8 . 2 . 6 12 3 . 3 2 . . . . . 5 2 Fabricators 7 | . . . . . . . . . . . 1 . 3 . . . 1 . . . . . . . . . . 1 . 1 . . . Repair Stations 9 | . 1 . . . . . . . 3 . 1 . 2 . . . 2 . . . . . . . . . . . . . . . . Recycling Units 1 | . . . . . . . . . . . . . . . . . . . . . . 1 . . . . . . . . . . . Scanalyzers 5 | . . . . . 1 . . . 1 . 1 . 1 . . . 1 . . . . . . . . . . . . . . . . Garrison Access 11 | . . . . . 1 . 1 . . . 2 . 1 . . . 1 . . . . . . . . 1 . 1 . 1 . 2 . Total Hacks 290 | . 24 . 24 . 44 . 1 . 16 . 25 . 20 . 3 . 27 . 2 . 11 24 8 25 4 6 . 6 . 7 . 9 4 Successful 172 | . 13 . 24 . 30 . 1 . 11 . 11 . 12 . 2 . 9 . 1 . 2 12 4 25 1 2 . 3 . 3 . 5 1 Failed 118 | . 11 . . . 14 . . . 5 . 14 . 8 . 1 . 18 . 1 . 9 12 4 . 3 4 . 3 . 4 . 4 3 Catastrophic 25 | . . . . . 4 . . . 1 . 5 . . . . . 4 . 1 . 3 1 . . . 2 . 1 . 1 . 2 . Database Lockouts . | . . . . . . . . . . . . . . . . . . . . . . . . . . . . . . . . . . Manual 75 | . 14 . 1 . 19 . . . 4 . 4 . 4 . . . 10 . . . 2 10 1 . 3 3 . . . . . . . Terminals 155 | . 22 . . . 20 . . . 7 . 14 . 7 . 3 . 18 . 2 . 11 23 8 . 4 5 . . . . . 7 4 Fabricators 20 | . . . . . . . . . . . 1 . 6 . . . 2 . . . . . . . . . . 5 . 6 . . . Repair Stations 20 | . 2 . . . . . . . 7 . 5 . 3 . . . 3 . . . . . . . . . . . . . . . . Recycling Units 1 | . . . . . . . . . . . . . . . . . . . . . . 1 . . . . . . . . . . . Scanalyzers 34 | . . . . . 23 . . . 2 . 3 . 3 . . . 3 . . . . . . . . . . . . . . . . Garrison Access 11 | . . . . . 1 . 1 . . . 2 . 1 . . . 1 . . . . . . . . 1 . 1 . 1 . 2 . Terminal Hacks 86 | . 5 . 24 . 2 . . . 1 . 2 . 2 . 2 . 3 . 1 . 2 7 4 25 1 1 . . . . . 3 1 Record 52 | . . . 23 . . . . . . . . . . . . . . . . . . . 4 25 . . . . . . . . . Robot Schematic 1 | . . . . . . . . . . . . . . . 1 . . . . . . . . . . . . . . . . . . Robot Analysis 2 | . 1 . . . . . . . . . . . . . . . 1 . . . . . . . . . . . . . . . . Prototype ID Bank 9 | . 1 . . . 1 . . . 1 . 2 . 1 . 1 . . . 1 . . 1 . . . . . . . . . . . Open Door 9 | . . . . . . . . . . . . . . . . . . . . . 1 4 . . . . . . . . . 3 1 Branch Access Points 5 | . . . . . 1 . . . . . . . 1 . . . 1 . . . 1 1 . . . . . . . . . . . Garrison Index 1 | . . . . . . . . . . . . . . . . . . . . . . . . . . 1 . . . . . . . Unreport Threat 2 | . 1 . . . . . . . . . . . . . . . . . . . . 1 . . . . . . . . . . . Locate Traps 1 | . 1 . . . . . . . . . . . . . . . . . . . . . . . . . . . . . . . . Hauler Manifests 1 | . 1 . . . . . . . . . . . . . . . . . . . . . . . . . . . . . . . . Zone Layout 2 | . . . . . . . . . . . . . . . . . 1 . . . . . . . 1 . . . . . . . . EX-Prototype ID Bank 1 | . . . 1 . . . . . . . . . . . . . . . . . . . . . . . . . . . . . . Fabricator Hacks 10 | . . . . . . . . . . . 1 . 4 . . . 1 . . . . . . . . . . 2 . 2 . . . Load Schematic 5 | . . . . . . . . . . . . . 2 . . . 1 . . . . . . . . . . 1 . 1 . . . Build 5 | . . . . . . . . . . . 1 . 2 . . . . . . . . . . . . . . 1 . 1 . . . Repair Station Hacks 14 | . 2 . . . . . . . 6 . 3 . 2 . . . 1 . . . . . . . . . . . . . . . . Scan Component 8 | . 1 . . . . . . . 3 . 2 . 1 . . . 1 . . . . . . . . . . . . . . . . Repair 6 | . 1 . . . . . . . 3 . 1 . 1 . . . . . . . . . . . . . . . . . . . . Recycling Unit Hacks . | . . . . . . . . . . . . . . . . . . . . . . . . . . . . . . . . . . Scanalyzer 30 | . . . . . 23 . . . 2 . 2 . 1 . . . 2 . . . . . . . . . . . . . . . . Insert Component 16 | . . . . . 12 . . . 1 . 1 . 1 . . . 1 . . . . . . . . . . . . . . . . Analyze 14 | . . . . . 11 . . . 1 . 1 . . . . . 1 . . . . . . . . . . . . . . . . Garrison Access Hacks 11 | . . . . . 1 . 1 . . . 2 . 1 . . . 1 . . . . . . . . 1 . 1 . 1 . 2 . Unlock Access 8 | . . . . . 1 . 1 . . . 1 . 1 . . . 1 . . . . . . . . 1 . 1 . 1 . . . Seal Access 3 | . . . . . . . . . . . 1 . . . . . . . . . . . . . . . . . . . . 2 . Unauthorized Hacks 21 | . 6 . . . 4 . . . 2 . 1 . 2 . . . 1 . . . . 5 . . . . . . . . . . . Terminals 21 | . 6 . . . 4 . . . 2 . 1 . 2 . . . 1 . . . . 5 . . . . . . . . . . . Track 2 | . 1 . . . . . . . . . . . . . . . . . . . . 1 . . . . . . . . . . . Assimilate 3 | . 2 . . . 1 . . . . . . . . . . . . . . . . . . . . . . . . . . . . Botnet 16 | . 3 . . . 3 . . . 2 . 1 . 2 . . . 1 . . . . 4 . . . . . . . . . . . Fabricators . | . . . . . . . . . . . . . . . . . . . . . . . . . . . . . . . . . . Repair Stations . | . . . . . . . . . . . . . . . . . . . . . . . . . . . . . . . . . . Recycling Units . | . . . . . . . . . . . . . . . . . . . . . . . . . . . . . . . . . . Scanalyzers . | . . . . . . . . . . . . . . . . . . . . . . . . . . . . . . . . . . Garrison Access . | . . . . . . . . . . . . . . . . . . . . . . . . . . . . . . . . . . Data Cores Recovered 3 | . . . . . 1 . . . . . 1 . . . . . 1 . . . . . . . . . . . . . . . . Used 2 | . . . . . 1 . . . . . 1 . . . . . . . . . . . . . . . . . . . . . . Hacking Detections 86 | . 8 . . . 8 . . . 5 . 10 . 9 . 2 . 12 . 2 . 5 12 2 . 3 2 . 1 . 2 . 2 1 Full Trace Events 5 | . . . . . . . . . . . 1 . . . . . 2 . . . 1 1 . . . . . . . . . . . Feedback Events 2 | . . . . . . . . . . . 1 . . . . . . . . . 1 . . . . . . . . . . . . Corruption 2 | . . . . . . . . . . . 1 . . . . . . . . . 1 . . . . . . . . . . . . Feedback Blocked . | . . . . . . . . . . . . . . . . . . . . . . . . . . . . . . . . . . Robot Schematics Acquired 1 | . . . . . . . . . . . . . . . 1 . . . . . . . . . . . . . . . . . . Robots Built 4 | . . . . . . . . . . . . . . . . . . . . . . . . . . . . 2 . 2 . . . Matter 636 | . . . . . . . . . . . . . . . . . . . . . . . . . . . . 318 . 318 . . . Time 253 | . . . . . . . . . . . . . . . . . . . . . . . . . . . . 169 . 84 . . . Total Robot Build Rating 24 | . . . . . . . . . . . . . . . . . . . . . . . . . . . . 12 . 12 . . . Part Schematics Acquired 12 | . . . . . 11 . . . 1 . . . . . . . . . . . . . . . . . . . . . . . . Parts Built 1 | . . . . . . . . . . . . . 1 . . . . . . . . . . . . . . . . . . . . Matter 219 | . . . . . . . . . . . . . 219 . . . . . . . . . . . . . . . . . . . . Time 116 | . . . . . . . . . . . . . 116 . . . . . . . . . . . . . . . . . . . . Total Part Build Rating 3 | . . . . . . . . . . . . . 3 . . . . . . . . . . . . . . . . . . . . Parts Repaired 6 | . 1 . . . . . . . 3 . 1 . 1 . . . . . . . . . . . . . . . . . . . . Time 193 | . 26 . . . . . . . 106 . 31 . 30 . . . . . . . . . . . . . . . . . . . . Parts Recycled . | . . . . . . . . . . . . . . . . . . . . . . . . . . . . . . . . . . Recycled Matter . | . . . . . . . . . . . . . . . . . . . . . . . . . . . . . . . . . . Retrieved Matter . | . . . . . . . . . . . . . . . . . . . . . . . . . . . . . . . . . . Retrieved Components . | . . . . . . . . . . . . . . . . . . . . . . . . . . . . . . . . . . Parts Scanalyzed 15 | . . . . . 11 . . . 1 . 1 . 1 . . . 1 . . . . . . . . . . . . . . . . Part Schematics Acquired 12 | . . . . . 11 . . . 1 . . . . . . . . . . . . . . . . . . . . . . . . Parts Damaged 3 | . . . . . 2 . . . 1 . . . . . . . . . . . . . . . . . . . . . . . . Bothacking | -11 -10 -10 -10 -9 -8 -8 -8 -8 -7 -7 -7 -7 -6 -6 -5 -5 -5 -5 -4 -4 -4 -4 -4 -4 -4 -3 -3 -2 -2 -2 -2 -1 -1 ------------ Run | Scr Mat Min Exi Min Mat Gar Mat Gar Fac Was Fac Gar Fac Gar Fac Was Fac Gar Fac Was Fac Ext Cet Arc Hub Res Gar Res Gar Res Gar Acc Com Used RIF Installer 8 | . . . . . . 1 . 1 . . . 1 . 1 . . . 1 . . . . . . . . 1 . 1 . 1 . . Coupler Efficiency 1 | . . . . . . . . 1 . . . . . . . . . . . . . . . . . . . . . . . . . Command Fork 1 | . . . . . . . . . . . . . . 1 . . . . . . . . . . . . . . . . . . . Zone Cloak 2 | . . . . . . . . . . . . 1 . . . . . . . . . . . . . . . . 1 . . . . Patrol Navigation 1 | . . . . . . . . . . . . . . . . . . . . . . . . . . . 1 . . . . . . Watcher Feeds 1 | . . . . . . . . . . . . . . . . . . . . . . . . . . . . . . . 1 . . Structural Interface 1 | . . . . . . . . . . . . . . . . . . 1 . . . . . . . . . . . . . . . Robots Hacked 44 | . . . 5 . . . . . . 6 . . . . 1 6 2 . 2 6 . 7 . . . 2 . 4 . . . 1 2 Non-combat 10 | . . . 3 . . . . . . . . . . . 1 . . . 2 . . . . . . 1 . 2 . . . 1 . Combat 34 | . . . 2 . . . . . . 6 . . . . . 6 2 . . 6 . 7 . . . 1 . 2 . . . . 2 Robot Hacks Applied 59 | . . . 5 . . . . . . 6 . . . . 1 6 4 . 2 10 . 7 . . . 6 . 5 . . . 5 2 parse_system 8 | . . . 5 . . . . . . . . . . . . . . . . . . 1 . . . . . 1 . . . . 1 no_distress 1 | . . . . . . . . . . . . . . . . . . . . . . . . . . . . 1 . . . . . find_chute 3 | . . . . . . . . . . . . . . . 1 . . . 2 . . . . . . . . . . . . . . purge_threat 6 | . . . . . . . . . . . . . . . . . . . . . . . . . . 3 . . . . . 3 . block_reporting 2 | . . . . . . . . . . . . . . . . . . . . . . . . . . 1 . . . . . 1 . ignore_targets 18 | . . . . . . . . . . 6 . . . . . 6 . . . 6 . . . . . . . . . . . . . find_garrison 2 | . . . . . . . . . . . . . . . . . 1 . . . . . . . . . . 1 . . . . . overload_power 4 | . . . . . . . . . . . . . . . . . . . . 4 . . . . . . . . . . . . . wipe_record 1 | . . . . . . . . . . . . . . . . . 1 . . . . . . . . . . . . . . . . reboot_system 2 | . . . . . . . . . . . . . . . . . 1 . . . . . . . . . . 1 . . . . . overwrite_iff 7 | . . . . . . . . . . . . . . . . . . . . . . 6 . . . 1 . . . . . . . formatsys_low 2 | . . . . . . . . . . . . . . . . . . . . . . . . . . 1 . . . . . 1 . formatsys_high 3 | . . . . . . . . . . . . . . . . . 1 . . . . . . . . . . 1 . . . . 1 Manual 1 | . . . . . . . . . . . . . . . . . . . . . . . . . . . . . . . . . 1 Relay Couplers Released 39 | . . . . . . 12 . . . . . 9 . . . . . 8 . . . . . . . 2 . . 8 . . . . Machine Destruction 39 | . . . . . . 12 . . . . . 9 . . . . . 8 . . . . . . . 2 . . 8 . . . . Attached 12 | . . . . . . . . . . 2 . . . . 1 . 1 . . 1 . 2 . . . 2 . 1 . . . 1 1 Robots Rewired 18 | . 1 . . . . . . . . . . . . . . . . . . . . 17 . . . . . . . . . . . Allies Hacked 5 | . . . . . . . . . . . 2 . . . . . . . . . . . . . . 1 . 1 . 1 . . . Hacks Repelled . | . . . . . . . . . . . . . . . . . . . . . . . . . . . . . . . . . . Allies | -11 -10 -10 -10 -9 -8 -8 -8 -8 -7 -7 -7 -7 -6 -6 -5 -5 -5 -5 -4 -4 -4 -4 -4 -4 -4 -3 -3 -2 -2 -2 -2 -1 -1 -------- Run | Scr Mat Min Exi Min Mat Gar Mat Gar Fac Was Fac Gar Fac Gar Fac Was Fac Gar Fac Was Fac Ext Cet Arc Hub Res Gar Res Gar Res Gar Acc Com Total Allies 95 | . 2 . . 2 . . . . . 20 . . . . . 20 4 . . . . 28 5 . . 3 . 6 . 3 . 1 1 Largest Group 22 | . 2 2 2 4 3 . . . . 19 19 . . . . 19 19 . . . . 19 22 16 10 2 . 3 . 3 3 1 2 Highest-Rated Group 1265 | . 20 20 20 63 51 . . . . 477 477 . . . . 714 714 . . . . 950 1265 977 639 98 . 138 . 138 138 44 108 Highest-Rated Ally 156 | . 10 10 10 31 31 . . . . 35 35 . . . . 50 50 . . . . 156 156 149 94 51 . 56 . 54 54 44 64 Total Orders 15 | . 2 3 . 2 . . . . . . . . . . . . 1 . 1 . . . 2 2 . . . 1 . . 1 . . STAY 3 | . . . . 1 . . . . . . . . . . . . 1 . . . . . . . . . . . . . 1 . . FOLLOW 3 | . 1 1 . 1 . . . . . . . . . . . . . . . . . . . . . . . . . . . . . GUARD 5 | . . . . . . . . . . . . . . . . . . . . . . . 2 2 . . . 1 . . . . . DROP 1 | . 1 . . . . . . . . . . . . . . . . . . . . . . . . . . . . . . . . PICKUP 1 | . . 1 . . . . . . . . . . . . . . . . . . . . . . . . . . . . . . . COLLECT 1 | . . 1 . . . . . . . . . . . . . . . . . . . . . . . . . . . . . . . EXPLORE 1 | . . . . . . . . . . . . . . . . . . . 1 . . . . . . . . . . . . . . Ally Attacks 657 | . . . . 7 3 . . . . 173 62 . . . . 25 83 . . . . 34 104 31 93 6 . 26 . 9 . . 1 Total Damage 16372 | . . . . 104 63 . . . . 3033 1111 . . . . 374 2024 . . . . 819 3456 1042 3155 209 . 837 . 115 . . 30 Kills 89 | . . . . 3 1 . . . . 5 9 . . . . . 15 . . . . 3 22 7 17 1 . 4 . 2 . . . Allies Corrupted 1 | . . . . . . . . . . . . . . . . . . . . . . . . . . . . 1 . . . . . Allies Melted . | . . . . . . . . . . . . . . . . . . . . . . . . . . . . . . . . . . Intel | -11 -10 -10 -10 -9 -8 -8 -8 -8 -7 -7 -7 -7 -6 -6 -5 -5 -5 -5 -4 -4 -4 -4 -4 -4 -4 -3 -3 -2 -2 -2 -2 -1 -1 ------- Run | Scr Mat Min Exi Min Mat Gar Mat Gar Fac Was Fac Gar Fac Gar Fac Was Fac Gar Fac Was Fac Ext Cet Arc Hub Res Gar Res Gar Res Gar Acc Com Robot Analysis Total 2 | . 1 . . . . . . . . . . . . . . . 1 . . . . . . . . . . . . . . . . Derelict Logs Recovered 1 | . . 1 . . . . . . . . . . . . . . . . . . . . . . . . . . . . . . . Drone Launches 1 | . . . . . . . . . . . . . . . . . . . 1 . . . . . . . . . . . . . . Drone Recoveries 1 | . . . . . . . . . . . . . . . . . . . 1 . . . . . . . . . . . . . . Exploration | -11 -10 -10 -10 -9 -8 -8 -8 -8 -7 -7 -7 -7 -6 -6 -5 -5 -5 -5 -4 -4 -4 -4 -4 -4 -4 -3 -3 -2 -2 -2 -2 -1 -1 ------------- Run | Scr Mat Min Exi Min Mat Gar Mat Gar Fac Was Fac Gar Fac Gar Fac Was Fac Gar Fac Was Fac Ext Cet Arc Hub Res Gar Res Gar Res Gar Acc Com Turns Passed 45096 | 342 1495 730 1114 431 2055 1231 50 822 1273 1561 2365 2093 2293 1315 904 1890 1661 2836 773 305 653 3614 749 1363 615 1415 1237 1022 2392 486 1462 1449 1100 Spaces Moved 19980 | 118 808 424 683 267 996 894 29 527 639 683 1143 1022 870 595 414 631 771 1396 281 107 281 1645 367 377 245 478 547 400 592 181 625 599 345 Core 4 | 4 . . . . . . . . . . . . . . . . . . . . . . . . . . . . . . . . . Treads 17250 | 114 808 424 683 267 385 . . . . 657 1143 1022 870 595 414 631 771 1396 281 107 281 1645 367 377 245 478 547 400 592 181 625 599 345 Legs 68 | . . . . . 68 . . . . . . . . . . . . . . . . . . . . . . . . . . . . Wheels 2658 | . . . . . 543 894 29 527 639 26 . . . . . . . . . . . . . . . . . . . . . . . Hover . | . . . . . . . . . . . . . . . . . . . . . . . . . . . . . . . . . . Flight . | . . . . . . . . . . . . . . . . . . . . . . . . . . . . . . . . . . Fastest Speed 50 | 50 160 160 160 160 110 100 120 100 120 130 180 160 180 180 180 180 180 160 180 180 180 180 180 180 180 180 152 172 160 190 165 181 173 Average Speed 167 | 156 160 160 160 160 149 106 120 112 129 178 180 164 188 184 180 180 180 166 180 187 180 180 180 180 180 180 163 173 171 206 175 181 179 Slowest Speed 300 | 160 160 160 160 160 300 120 120 120 130 180 180 180 200 200 180 180 180 180 180 220 180 180 180 180 180 180 180 205 190 215 190 181 181 Overloaded Moves . | . . . . . . . . . . . . . . . . . . . . . . . . . . . . . . . . . . Propulsion Burnouts . | . . . . . . . . . . . . . . . . . . . . . . . . . . . . . . . . . . Robots Hopped . | . . . . . . . . . . . . . . . . . . . . . . . . . . . . . . . . . . Cave-ins Triggered 1 | . . . . . . . . . . . . . . . . . . . . . 1 . . . . . . . . . . . . Exploration Rate (%) 49 | 5 96 85 90 36 87 70 5 59 15 95 32 88 27 56 17 95 29 88 14 80 10 83 88 99 29 14 45 13 48 8 46 25 10 Regions Visited 33 Branch Regions 8 Pre-discovered Areas 1 | . . . 1 . . . . . . . . . . . . . . . . . . . . . . . . . . . . . . Known Exits Taken 10 | . . . . . 1 . 1 . . . 1 . 1 . . . 1 . . . 1 1 . . . 1 . 1 . 1 . . . Unknown Exits Taken 9 | 1 1 1 1 1 . . . . . . . . . . . . . . . . . . 1 1 1 . . . . . . 1 . Scrap Searched . | . . . . . . . . . . . . . . . . . . . . . . . . . . . . . . . . . . Spaces Dug 150 | . . . . . 7 1 4 3 1 . 3 . 6 . 4 . 8 21 12 . 31 1 . . 6 9 . 3 . 7 . 20 3 Terrain Destroyed 796 | . 11 6 . . 35 18 4 4 1 . 24 5 68 12 5 . 53 42 67 . 32 54 1 . 211 23 29 9 33 7 2 24 16 Melee 103 | . . . . . 2 1 4 3 1 . 3 . 6 . 4 . 8 . 12 . 15 1 . . 2 9 . 3 . 7 . 19 3 Projectile 154 | . . . . . 5 . . . . . . . 5 3 1 . 5 7 4 . 17 19 1 . 24 14 3 6 21 . 2 5 12 AOE 539 | . 11 6 . . 28 17 . 1 . . 21 5 57 9 . . 40 35 51 . . 34 . . 185 . 26 . 12 . . . 1 Terrain Rammed . | . . . . . . . . . . . . . . . . . . . . . . . . . . . . . . . . . . Walls Destroyed . | . . . . . . . . . . . . . . . . . . . . . . . . . . . . . . . . . . Machines Disabled . | . . . . . . . . . . . . . . . . . . . . . . . . . . . . . . . . . . Actions | -11 -10 -10 -10 -9 -8 -8 -8 -8 -7 -7 -7 -7 -6 -6 -5 -5 -5 -5 -4 -4 -4 -4 -4 -4 -4 -3 -3 -2 -2 -2 -2 -1 -1 --------- Run | Scr Mat Min Exi Min Mat Gar Mat Gar Fac Was Fac Gar Fac Gar Fac Was Fac Gar Fac Was Fac Ext Cet Arc Hub Res Gar Res Gar Res Gar Acc Com Total 29342 | 251 958 474 699 269 1413 1101 34 733 1066 910 1401 1371 1405 779 514 1287 954 1843 461 195 387 2141 453 1059 368 788 813 655 1878 281 894 837 670 Wait 6284 | 108 70 39 7 1 214 67 . 104 389 89 195 229 431 64 29 533 87 281 109 56 46 256 58 666 69 153 105 189 1120 87 139 150 144 Move 19957 | 117 807 423 682 266 996 893 29 526 639 682 1143 1021 870 594 414 630 771 1395 281 106 279 1644 366 376 244 478 546 400 591 181 624 598 345 Hop . | . . . . . . . . . . . . . . . . . . . . . . . . . . . . . . . . . . Pick Up 561 | 7 17 3 1 . 29 24 . 26 8 22 15 27 6 30 14 24 10 44 7 5 9 22 7 4 12 11 48 4 52 1 43 5 24 Fast Attach 201 | 6 4 . . . 14 5 . 5 3 6 1 13 6 14 3 4 2 23 1 . 2 12 4 1 . 2 18 6 16 1 20 1 8 Attach 129 | . 3 . . . 5 1 . 3 3 . 2 1 6 10 3 . 2 4 6 2 5 14 . . 3 13 12 4 10 . 2 2 13 Detach 76 | . 1 . . . 1 2 . 2 . 2 . 6 2 11 . . . 10 1 1 . 5 . . 2 2 8 . 8 . 6 . 6 Swap 198 | . 4 3 1 1 19 5 . 2 4 8 2 1 16 . 8 5 19 3 9 3 3 22 5 8 3 11 2 5 3 1 1 11 10 Drop 429 | 1 9 3 2 . 37 6 . 10 10 16 16 10 4 21 14 29 11 30 3 5 11 30 11 4 10 8 31 9 27 2 17 4 28 Fire 1172 | 12 36 3 . 1 96 47 . 9 9 46 23 52 56 26 25 58 40 51 32 15 16 133 2 . 23 100 39 33 43 . 42 42 62 Melee 200 | . . . 6 . 2 8 5 6 1 39 4 1 6 . 4 4 8 . 12 2 15 1 . . 2 9 . 3 . 8 . 24 30 Ram . | . . . . . . . . . . . . . . . . . . . . . . . . . . . . . . . . . . Kick . | . . . . . . . . . . . . . . . . . . . . . . . . . . . . . . . . . . Crush 1 | . . . . . . . . . . . . . . . . . . . . . . . . . . 1 . . . . . . . Escape Stasis 126 | . . . . . . 42 . 40 . . . 10 2 9 . . 4 2 . . 1 2 . . . . 4 2 8 . . . . Rewire 8 | . 7 . . . . 1 . . . . . . . . . . . . . . . . . . . . . . . . . . . Trap . | . . . . . . . . . . . . . . . . . . . . . . . . . . . . . . . . . . Miscellaneous . | . . . . . . . . . . . . . . . . . . . . . . . . . . . . . . . . . . Route ------- -11/Scrapyard -10/Materials (discovered 5 exits: [*Mat x3] / [*Min x2]) -10/Mines (discovered 3 exits: [*Mat x2] / *Exi) -10/Exiles -9/Mines -8/Materials (discovered 4 exits: *Fac x3 / Gar) -8/Garrison (discovered 2 exits: *Mat x2) -8/Materials -8/Garrison (discovered 2 exits: *Fac x2) -7/Factory -7/Waste -7/Factory (discovered 2 exits: *Fac / Gar) -7/Garrison (discovered 3 exits: *Fac x3) -6/Factory (discovered 5 exits: *Fac x2 / Low x2 / Gar) -6/Garrison (discovered 2 exits: *Fac x2) -5/Factory -5/Waste -5/Factory (discovered 5 exits: *Fac x2 / Upp x2 / Gar) -5/Garrison (discovered 3 exits: *Fac x3) -4/Factory -4/Waste -4/Factory (discovered 6 exits: *Res / Upp x2 / *Ext x2 / Arm) -4/Extension (discovered 2 exits: *Res / *Cet) -4/Cetus (discovered 2 exits: *Res / *Arc) -4/Archives (discovered 3 exits: *Res / *Hub x2) -4/Hub_04(d) -3/Research -3/Garrison -2/Research (discovered 2 exits: *Acc / Gar) -2/Garrison -2/Research -2/Garrison -1/Access -1/Command 0b10 Command History --------- Turn | Location | Event 5 | -11/Scrapyard | Discovered new exit (range 15) 343 | -11/Scrapyard | Entered Materials 353 | -10/Materials | Build established: Mutant 511 | -10/Materials | Discovered new exit (range 5) 575 | -10/Materials | Discovered new exit (range 15) 864 | -10/Materials | Discovered new exit (range 16) 1050 | -10/Materials | Discovered new exit (range 9) 1260 | -10/Materials | Discovered new exit (range 5) 1576 | -10/Materials | Repaired Lgt. Treads 1838 | -10/Materials | Entered Mines 1838 | -10/Mines | Accompanied by 2 allies 1874 | -10/Mines | Discovered new exit (range 5) 2210 | -10/Mines | Received a Rocket Launcher from a helpful Derelict 2304 | -10/Mines | Discovered new exit (range 12) 2477 | -10/Mines | Assembled infested the area 2521 | -10/Mines | Core integrity fell below 50% 2545 | -10/Mines | Deemed a non-threat by the Exiles lab entrance 2547 | -10/Mines | Discovered new exit (range 5) 2568 | -10/Mines | Entered Exiles 2568 | -10/Exiles | Accompanied by 2 allies 2607 | -10/Exiles | Met 8R-AWN 2644 | -10/Exiles | Met EX-HEX 2726 | -10/Exiles | Met EX-DEC 2789 | -10/Exiles | Visited The Gauntlet 2879 | -10/Exiles | Met EX-BIN 2907 | -10/Exiles | Aligned with FarCom system 2908 | -10/Exiles | Given EX-Vault access code 2952 | -10/Exiles | Opened EX-Vault 2967 | -10/Exiles | Found Firepult 3000 | -10/Exiles | Warned to stay clear of 0b10 Research branches 3230 | -10/Exiles | Learned location of Zion (-6) 3654 | -10/Exiles | Discovered new exit (range 15) 3682 | -10/Exiles | Left Exiles lab with Firepult 3682 | -10/Exiles | Entered Mines 3682 | -9/Mines | Accompanied by 2 allies 4032 | -9/Mines | Discovered new exit (range 7) 4113 | -9/Mines | Entered Materials 4113 | -8/Materials | Accompanied by 3 allies 4113 | -8/Materials | Evolved 4 slots: Utility x2, Weapon x2 4118 | -8/Materials | Led the pair of lost Derelicts to an unsafe place 4949 | -8/Materials | Build established: Hauler-Skirmisher 5614 | -8/Materials | Discovered new exit (range 16) 5797 | -8/Materials | Discovered new exit (range 8) 5927 | -8/Materials | Build established: Hauler-Mutant 6070 | -8/Materials | Discovered new exit (range 16) 6126 | -8/Materials | Garrison activated, responded to threat 6168 | -8/Materials | Identified exit to Garrison 6168 | -8/Materials | Entered Garrison 6174 | -8/Garrison | Installed Relay Interface Framework 6323 | -8/Garrison | Triggered checkpoint 6460 | -8/Garrison | Triggered checkpoint 6490 | -8/Garrison | Build established: Mutant 6529 | -8/Garrison | Discovered new exit (range 15) 6536 | -8/Garrison | Triggered checkpoint 6587 | -8/Garrison | Garrison Relay disabled 6674 | -8/Garrison | Triggered checkpoint 6711 | -8/Garrison | Discovered new exit (range 10) 6920 | -8/Garrison | Garrison Relay disabled 7378 | -8/Garrison | Build established: Hauler-Mutant 7399 | -8/Garrison | Entered Materials 7449 | -8/Materials | Identified exit to Garrison 7449 | -8/Materials | Entered Garrison 7696 | -8/Garrison | Triggered checkpoint 7696 | -8/Garrison | Triggered checkpoint 7796 | -8/Garrison | Discovered new exit (range 10) 7907 | -8/Garrison | Discovered new exit (range 10) 7926 | -8/Garrison | Expanded RIF knowledge: Coupler Efficiency 7935 | -8/Garrison | Build established: Mutant 8271 | -8/Garrison | Entered Factory 8271 | -7/Factory | Evolved 2 slots: Utility x2 8436 | -7/Factory | Build established: Bothacker-Mutant 8502 | -7/Factory | Discovered new exit (range 8) 8548 | -7/Factory | Repaired Adv. EMP Blaster 8818 | -7/Factory | Repaired Shield Generator 9107 | -7/Factory | Build established: Bothacker-Tank 9155 | -7/Factory | Repaired Flak Gun 9544 | -7/Factory | Sucked down chute 9544 | -7/Factory | Entered Waste 9545 | -7/Waste | Met a frightened Derelict 9553 | -7/Waste | Spotted C-40 Crusher 9591 | -7/Waste | Allies destroyed C-40 Crusher 9610 | -7/Waste | Found Damper Plating 9637 | -7/Waste | Spotted C-40 Crusher 9693 | -7/Waste | Spotted C-40 Crusher 9693 | -7/Waste | Spotted C-40 Crusher 9721 | -7/Waste | Spotted C-40 Crusher 9826 | -7/Waste | Allies destroyed C-40 Crusher 9841 | -7/Waste | Found Damper Plating 9880 | -7/Waste | Allies destroyed C-40 Crusher 9897 | -7/Waste | Found Damper Plating 9901 | -7/Waste | Found Damper Plating 9912 | -7/Waste | Spotted C-40 Crusher 9921 | -7/Waste | Build established: Hauler-Mutant 10428 | -7/Waste | Discovered new exit (range 14) 10692 | -7/Waste | Destroyed C-40 Crusher 10835 | -7/Waste | Warlord forces began an assault 11105 | -7/Waste | Entered Factory 11105 | -7/Factory | Accompanied by 19 allies 11148 | -7/Factory | Build established: Hauler-Skirmisher 12251 | -7/Factory | Repaired Antimatter Reactor 12541 | -7/Factory | Discovered new exit (range 15) 13101 | -7/Factory | Identified exit to Factory 13470 | -7/Factory | Identified exit to Garrison 13470 | -7/Factory | Entered Garrison 13580 | -7/Garrison | Triggered checkpoint 13708 | -7/Garrison | Triggered checkpoint 13863 | -7/Garrison | Triggered checkpoint 14042 | -7/Garrison | Triggered checkpoint 14302 | -7/Garrison | Discovered exit to Factory (range 10) 14378 | -7/Garrison | Triggered checkpoint 14490 | -7/Garrison | Build established: Mutant 14573 | -7/Garrison | Discovered exit to Factory (range 8) 14763 | -7/Garrison | Discovered exit to Factory (range 15) 14799 | -7/Garrison | Expanded RIF knowledge: Zone Cloak 14884 | -7/Garrison | Triggered checkpoint 15208 | -7/Garrison | Garrison Relay disabled 15394 | -7/Garrison | Build established: Hauler-Mutant 15482 | -7/Garrison | Garrison Relay disabled 15563 | -7/Garrison | Entered Factory 15563 | -6/Factory | Evolved 2 slots: Utility x2 15863 | -6/Factory | Local fabrication network quarantined 15930 | -6/Factory | Fabricated Adv. EMP Blaster (x1) 16176 | -6/Factory | Identified exit to Lower Caves 16263 | -6/Factory | First assault squad dispatched 16443 | -6/Factory | Destroyed 9 combat bots 16871 | -6/Factory | Build established: Hauler-Tank 17271 | -6/Factory | Destroyed 7 combat bots 17295 | -6/Factory | Discovered new exit (range 5) 17473 | -6/Factory | Repaired Adv. EMP Blaster 17644 | -6/Factory | Build established: Hauler-Mutant 17676 | -6/Factory | Discovered new exit (range 15) 17775 | -6/Factory | Garrison activated, responded to threat 17786 | -6/Factory | System corruption reached 10% 17815 | -6/Factory | Lost 3 parts (1n1u1w) 17824 | -6/Factory | Destroyed 8 combat bots 17856 | -6/Factory | Identified exit to Garrison 17856 | -6/Factory | Entered Garrison 18147 | -6/Garrison | Triggered checkpoint 18175 | -6/Garrison | Destroyed 7 combat bots 18210 | -6/Garrison | Triggered checkpoint 18245 | -6/Garrison | Destroyed B-75 Beast 18452 | -6/Garrison | Discovered new exit (range 9) 18572 | -6/Garrison | Build established: Scavenger-Mutant 18619 | -6/Garrison | Discovered new exit (range 15) 18664 | -6/Garrison | Expanded RIF knowledge: Command Fork 19171 | -6/Garrison | Entered Factory 19171 | -5/Factory | Evolved 2 slots: Propulsion x2 19303 | -5/Factory | Build established: Hauler-Tank 20071 | -5/Factory | First assault squad dispatched 20075 | -5/Factory | Sucked down chute 20075 | -5/Factory | Entered Waste 20076 | -5/Waste | Met a frightened Derelict 20083 | -5/Waste | Spotted C-40 Crusher 20098 | -5/Waste | Spotted C-40 Crusher 20114 | -5/Waste | Spotted C-40 Crusher 20156 | -5/Waste | Spotted C-40 Crusher 20161 | -5/Waste | Spotted C-40 Crusher 20162 | -5/Waste | Build established: Hauler-Mutant 20179 | -5/Waste | Spotted C-40 Crusher 20219 | -5/Waste | Found Gamma Bomb Array 20500 | -5/Waste | Destroyed C-40 Crusher 20506 | -5/Waste | Found Damper Plating 20587 | -5/Waste | Destroyed C-40 Crusher 20594 | -5/Waste | Found Damper Plating 21112 | -5/Waste | Destroyed C-40 Crusher 21119 | -5/Waste | Found Damper Plating 21157 | -5/Waste | Destroyed C-40 Crusher 21165 | -5/Waste | Destroyed C-40 Crusher 21176 | -5/Waste | Found Damper Plating 21202 | -5/Waste | Destroyed C-40 Crusher 21209 | -5/Waste | Found Damper Plating 21290 | -5/Waste | Discovered new exit (range 12) 21584 | -5/Waste | Warlord forces began an assault 21965 | -5/Waste | Entered Factory 21965 | -5/Factory | Accompanied by 19 allies 22349 | -5/Factory | Discovered new exit (range 15) 22485 | -5/Factory | Allied Derelicts emerged from ambush trap array 22991 | -5/Factory | Destroyed 10 combat bots 23301 | -5/Factory | Discovered new exit (range 8) 23322 | -5/Factory | Identified exit to Upper Caves 23328 | -5/Factory | Build established: Hauler-Skirmisher 23626 | -5/Factory | Identified exit to Garrison 23626 | -5/Factory | Entered Garrison 23844 | -5/Garrison | Destroyed 8 combat bots 23921 | -5/Garrison | Triggered checkpoint 23925 | -5/Garrison | Triggered checkpoint 23935 | -5/Garrison | System corruption reached 10% 23953 | -5/Garrison | Spotted B-75 Beast 23963 | -5/Garrison | Destroyed B-75 Beast 24135 | -5/Garrison | Discovered new exit (range 10) 24447 | -5/Garrison | Discovered new exit (range 10) 24492 | -5/Garrison | Triggered checkpoint 24651 | -5/Garrison | Build established: Scavenger-Mutant 24663 | -5/Garrison | Triggered checkpoint 24751 | -5/Garrison | Discovered new exit (range 14) 24945 | -5/Garrison | Expanded RIF knowledge: Structural Interface 24966 | -5/Garrison | Build established: Scavenger-Tank 25845 | -5/Garrison | Build established: Hauler-Skirmisher 25942 | -5/Garrison | Garrison Relay disabled 26067 | -5/Garrison | Garrison Relay disabled 26229 | -5/Garrison | Build established: Hauler-Mutant 26462 | -5/Garrison | Entered Factory 26462 | -4/Factory | Evolved 2 slots: Power x1, Utility x1 26760 | -4/Factory | Garrison activated, responded to threat 26973 | -4/Factory | Destroyed 7 combat bots 27212 | -4/Factory | First assault squad dispatched 27235 | -4/Factory | Sucked down chute 27235 | -4/Factory | Entered Waste 27250 | -4/Waste | EMP discharged 27271 | -4/Waste | Spotted C-40 Crusher 27311 | -4/Waste | Spotted C-40 Crusher 27317 | -4/Waste | Spotted C-40 Crusher 27325 | -4/Waste | Spotted C-40 Crusher 27350 | -4/Waste | EMP discharged 27355 | -4/Waste | Spotted C-40 Crusher 27369 | -4/Waste | Spotted C-40 Crusher 27407 | -4/Waste | Discovered new exit (range 15) 27450 | -4/Waste | EMP discharged 27540 | -4/Waste | Entered Factory 27680 | -4/Factory | Identified exit to Upper Caves 27680 | -4/Factory | Identified exit to Extension 27680 | -4/Factory | Identified exit to Armory 27738 | -4/Factory | Build established: Bothacker-Mutant 27762 | -4/Factory | Discovered new exit (range 15) 27862 | -4/Factory | Crushed by falling debris 28193 | -4/Factory | Entered Extension 28372 | -4/Extension | Destroyed B-86 Titan 28393 | -4/Extension | Disrupted transfer network 28426 | -4/Extension | Spotted B-86 Titan 28471 | -4/Extension | Destroyed B-86 Titan 28529 | -4/Extension | Lost 5 parts (1n3u1w) 28603 | -4/Extension | Found Unknown Protection 28627 | -4/Extension | Identified Hvy. Reflective Plating 28654 | -4/Extension | Found Hvy. Reflective Plating 29299 | -4/Extension | Build established: Scavenger-Tank 29471 | -4/Extension | Identified exit to Cetus 30077 | -4/Extension | Discovered new exit (range 10) 30533 | -4/Extension | Rescued a captive Derelict 30632 | -4/Extension | Rescued a captive Derelict 30784 | -4/Extension | Build established: Hauler-Mutant 31107 | -4/Extension | Build established: Commander-Mutant 31403 | -4/Extension | Rescued a captive Derelict 31595 | -4/Extension | Rescued A7 31807 | -4/Extension | Entered Cetus 31807 | -4/Cetus | Accompanied by 18 allies (A7) 31812 | -4/Cetus | Acquired a Cetus Manufacturing Module code from A7 31830 | -4/Cetus | Spotted Cetus Guard 31830 | -4/Cetus | Spotted Cetus Guard 31831 | -4/Cetus | Spotted Cetus Guard 31831 | -4/Cetus | Spotted Cetus Guard 31838 | -4/Cetus | Allies destroyed Cetus Guard 31844 | -4/Cetus | Allies destroyed Cetus Guard 31844 | -4/Cetus | Allies destroyed Cetus Guard 31851 | -4/Cetus | Allies destroyed Cetus Guard 31961 | -4/Cetus | Started Cetus Manufacturing Module 31986 | -4/Cetus | Manufactured an Enhanced Grunt 32011 | -4/Cetus | Manufactured an Enhanced Grunt 32036 | -4/Cetus | Manufactured an Enhanced Grunt 32039 | -4/Cetus | Discovered new exit (range 15) 32061 | -4/Cetus | Manufactured an Enhanced Grunt 32083 | -4/Cetus | Spotted Cetus Guard 32086 | -4/Cetus | Manufactured an Enhanced Grunt 32088 | -4/Cetus | Spotted Cetus Guard 32089 | -4/Cetus | Spotted Cetus Guard 32090 | -4/Cetus | Cetus Manufacturing Module disabled 32091 | -4/Cetus | Spotted Cetus Guard 32093 | -4/Cetus | Allies destroyed Cetus Guard 32093 | -4/Cetus | Allies destroyed Cetus Guard 32097 | -4/Cetus | Allies destroyed Cetus Guard 32097 | -4/Cetus | Allies destroyed Cetus Guard 32101 | -4/Cetus | Build established: Commander-Tank 32107 | -4/Cetus | Discovered new exit (range 15) 32121 | -4/Cetus | Met Revision 17 32361 | -4/Cetus | Escorted A7 to Cetus Mainframe 32556 | -4/Cetus | Entered Archives 32556 | -4/Archives | Accompanied by 16 allies (A7) 32561 | -4/Archives | Received a hacking code to weaken MAIN.C 32589 | -4/Archives | Unable to access archive contents 32596 | -4/Archives | Discovered new exit (range 15) 32616 | -4/Archives | Discovered new exit (range 16) 32631 | -4/Archives | Unable to access archive contents 32659 | -4/Archives | Unable to access archive contents 32690 | -4/Archives | Unable to access archive contents 32778 | -4/Archives | Discovered new exit (range 16) 33034 | -4/Archives | Unable to access archive contents 33070 | -4/Archives | Unable to access archive contents 33919 | -4/Archives | Entered Hub_04(d) 33919 | -4/Hub_04(d) | Accompanied by 10 allies 34101 | -4/Hub_04(d) | Build established: Scavenger-Tank 34364 | -4/Hub_04(d) | Discovered new exit (range 12) 34419 | -4/Hub_04(d) | First assault squad dispatched 34532 | -4/Hub_04(d) | Network Hub disabled 34534 | -4/Hub_04(d) | Entered Research 34534 | -3/Research | Evolved 2 slots: Utility x2 35034 | -3/Research | First assault squad dispatched 35624 | -3/Research | System corruption reached 10% 35780 | -3/Research | Spotted B-86 Titan 35810 | -3/Research | Garrison activated, responded to threat 35949 | -3/Research | Identified exit to Garrison 35949 | -3/Research | Entered Garrison 35958 | -3/Garrison | Expanded RIF knowledge: Watcher Feeds 36000 | -3/Garrison | Triggered checkpoint 36340 | -3/Garrison | Triggered checkpoint 36412 | -3/Garrison | Destroyed 11 combat bots 36712 | -3/Garrison | Discovered new exit (range 10) 37186 | -3/Garrison | Entered Research 37186 | -2/Research | Evolved 2 slots: Utility x2 37430 | -2/Research | Fabricated P-70 Sage (x2) 37800 | -2/Research | Discovered new exit (range 12) 37960 | -2/Research | Allied Derelicts emerged from ambush trap array 38007 | -2/Research | P-80 Master assimilated allied TS-61Z(g) 38186 | -2/Research | First assault squad dispatched 38208 | -2/Research | Identified exit to Garrison 38208 | -2/Research | Entered Garrison 39148 | -2/Garrison | Triggered checkpoint 39168 | -2/Garrison | Spotted B-90 Cyclops 39171 | -2/Garrison | Destroyed B-90 Cyclops 39488 | -2/Garrison | Discovered new exit (range 9) 39511 | -2/Garrison | Expanded RIF knowledge: Zone Cloak 39569 | -2/Garrison | Triggered checkpoint 39676 | -2/Garrison | Garrison Relay disabled 40044 | -2/Garrison | Triggered checkpoint 40056 | -2/Garrison | Garrison Relay disabled 40573 | -2/Garrison | Build established: Botlord-Mutant 40600 | -2/Garrison | Entered Research 40850 | -2/Research | First assault squad dispatched 40858 | -2/Research | Fabricated P-70 Sage (x2) 41072 | -2/Research | Sage 9c assimilated hostile S-43 Plague 41083 | -2/Research | Identified exit to Garrison 41086 | -2/Research | Entered Garrison 41086 | -2/Garrison | Accompanied by 3 allies 41388 | -2/Garrison | Build established: Scavenger-Tank 41466 | -2/Garrison | Lost 3 parts (3u) 41471 | -2/Garrison | Destroyed 11 combat bots 41577 | -2/Garrison | Spotted B-90 Cyclops 41605 | -2/Garrison | Destroyed B-90 Cyclops 41634 | -2/Garrison | Triggered checkpoint 41691 | -2/Garrison | Discovered new exit (range 10) 41719 | -2/Garrison | Expanded RIF knowledge: Patrol Navigation 42466 | -2/Garrison | Build established: Botlord-Mutant 42548 | -2/Garrison | Entered Access 42548 | -1/Access | Evolved 2 slots: Propulsion x2 43207 | -1/Access | Destroyed 8 combat bots 43351 | -1/Access | Build established: Botlord-Gunner 43983 | -1/Access | Discovered new exit (range 7) 43997 | -1/Access | Entered Command 43997 | -1/Command | Accompanied by 1 ally 44105 | -1/Command | Build established: Botlord-Mutant 44378 | -1/Command | Spotted Combat Programmer 44379 | -1/Command | Spotted Combat Programmer 44389 | -1/Command | Destroyed Combat Programmer 44393 | -1/Command | Spotted M Guard 44395 | -1/Command | Spotted M Guard 44403 | -1/Command | Destroyed Combat Programmer 44450 | -1/Command | Lost 4 parts (1p2u1w) 44460 | -1/Command | Destroyed M Guard 44460 | -1/Command | All MAIN.C guards destroyed 44666 | -1/Command | Found Unknown Protection 44857 | -1/Command | System corruption reached 10% 44939 | -1/Command | Met MAIN.C 45017 | -1/Command | Hacked MAIN.C using A7's code 45097 | -1/Command | Interfaced with 0b10 Conduit 45097 | *** | Assimilated 0b10! Last Messages --------------- Centrium Heavy Armor Plating Coolant Network Exp. Energy Well Hvy. Quantum Rifle Hpw. Disruptor Cannon 45017_ Jacked MAIN.C... 45017_ Command string: \\NEP9 45017_ Injected code into MAIN.C system. [Achievement: Poison In The Code] 45017_ MAIN.C reaction time slowed by virus. 45018_ Acquired 45 matter. 45018_ MAIN.C reaction time slowed by virus. 45019_ MAIN.C: "What did you do to me?!" 45019_ MAIN.C reaction time slowed by virus. 45041_ System corrupted: Heat flow error (+207). 45041_ MAIN.C reaction time slowed by virus. 45062_ System corrupted: Matter fused (-8). 45097_ Interfacing with system... 45097_ Overriding active MAIN.C lock. [Achievement: MAIN.CPP] Map ----- +----------------------------------------------------+ | ### ############################################## | | ### ############################################## | | ### ############################################## | | ### ############################################## | | ### ############################################## | | ### ############################################## | | ### ############################################## | | ################################################## | | ############################################ | | ############################################ | | ############################################ | | ############################################ | | ############################################ | | ############################################ | | ########""""""" """" ############### | | ########"" "" ############### | | ########""""" "" ############### | | ##+###########""""""""""" ; | | #########" " """ ; | | #########"" """""" / | | #########"" """""" ############### | | ######### " """""" ############### | | ######### " "" ############### | | # ########## " " ""############### | | # ##########""""""""" """""""############### | | # ##########"" @"""""""""############### | | # ########## """""""""""############### | | # ########## " " " " ############### | | ######### " " " " ############### | | """ " " " """" " ############### | | """ """ " " """" ############### | | """ " " " " ############### | | ##### """""""""" " ############### | | ##### " """ " """"""""############### | | ##### """ " " " ############### | | ######################################### | | ######################################### | | ######################################### | | ######################################### | | ######################################### | | ######################################### | | ######################################### | | ######################################### | | ######################################### | | ######################################### | | ################################# | | T################################# | | ############"""################################## | | # ####"""################################## | | # # ################################# | +----------------------------------------------------+ Best States ------------- Heat Dissipation 114 Coolant Potential 100 Energy Generation 45 Energy Capacity 1300 Matter Stores 500 Matter Capacity 550 Sight Range 16 Terrain Scan Density 10 Cloak Strength 4 Base Temperature (-) 200 Armor Coverage 5250 Resistance: KI 20 Resistance: TH 25 Resistance: EM 90 Weapon Shielding 66 Phase Shifting 15 Evasion (%) 55 Target Analysis 8 Armor Integrity Analysis 66 Recoil Reduction 6 Relay Coupler Types 40 Relay Coupler Value 1 Item Schematics ----------------- Adv. EMP Blaster | -8/Materials | Scanalyzed Hvy. Armor Plating | -8/Materials | Scanalyzed Datajack | -8/Materials | Scanalyzed Grenade Launcher | -8/Materials | Scanalyzed Reactive Plating | -8/Materials | Scanalyzed Trap Extractor | -8/Materials | Scanalyzed Lrg. Storage Unit | -8/Materials | Scanalyzed Recalibrator | -8/Materials | Scanalyzed Field Recycling Unit | -8/Materials | Scanalyzed Imp. Cooling System | -8/Materials | Scanalyzed Hvy. Ion Engine | -8/Materials | Scanalyzed Gauss Rifle | -7/Factory | Scanalyzed Robot Schematics ------------------ P-70 Sage | -5/Factory | Hacked Fabricated ------------ Adv. EMP Blaster | x1 | -6/Factory P-70 Sage | x2 | -2/Research P-70 Sage | x2 | -2/Research Alien Tech Used ----------------- None Achievements -------------- MAIN.CPP Main Advantage Poison In The Code Prison Break Project G-00 Revising The Future Challenges ------------ None Game ------ Seed FlyingNodeWand Manual? 0 Play Time 08:27:32 Cumulative 111.6 hours Start 2021.12.02 @ 23:07:07 End 2021.12.04 @ 02:42:28 Sessions 3 Manual Loads 0 Difficulty Rogue Special Mode None Game No. 48 Rogue 48 Adventurer 0 Explorer 0 Win Type 4 Total 2 Types 1/0/0/0/1/0/0/0/0 Lore% 36 Gallery% 59 Achievement% 49 Wizard Run 0 Options --------- ASCII 0 Keyboard 0 Movement Mouse Keybinds 0 Fullscreen 0 Font 28/SmallcapsGlow Map View 72x54 Tactical HUD 1 Map Filters NONE Filters NONE Steam 1 RUN: 7c87d422-ab2b-4043-8838-24bc1265a9e5